{"text_format":"1","workbook":"xlsx","n_sheets":4,"sheets":["Deckblatt","Rechnungen","Druckfassung","Wertebereiche"],"not_rendered":{"charts":0,"images":5,"macros":1,"external_links":0,"defined_names":3,"comments":0,"pivot_tables":0},"unopened":[],"bounds":{"document_bytes":16777216,"sheet_cells":100000,"rows_first":2000,"rows_last":500,"rows_between":2000,"halvings":0,"cell_chars":16384,"cell_head_chars":4096},"cells_cut":0,"cells_raw":0,"read":"whole","date_system":"1900"}

{"sheet":"Deckblatt","index":0,"n_rows":41,"n_cols":7,"rows_kept":41,"cut":false,"hidden":false,"merged":[[37,2,37,3],[35,0,35,1],[37,0,37,1],[20,2,20,3],[26,0,26,2],[28,0,28,2],[30,0,30,2],[20,0,20,1],[35,2,35,3],[22,0,22,2],[24,0,24,2],[0,0,0,7],[4,2,4,3],[15,2,15,3],[13,2,13,3],[3,5,3,7],[1,0,1,7],[10,2,10,3],[5,0,5,3]]}
["- Deckblatt -"]
[]
["Bitte ergänzen bzw. korrigieren Sie die rot markierten Felder!"]
["Maßnahme:",null,null,null,null,"Hinweise"]
[null,null,null,null,null,null,"Bitte auswählen!"]
[]
[]
["BNR-ZD/EU-Betriebsnummer:",null,"276 07",null,null,null,"10-stellig"]
[]
[]
["LAG-Bezeichnung:",null,null,null,null,null,"Bitte auswählen!"]
[]
["Antragsteller:"]
[null,"Name/Bezeichnung:"]
[]
[null,"Vorname:",null,null,null,null,"keine Pflichtangabe"]
[]
[null,null,""]
[]
[]
["Bezeichnung des Vorhabens:"]
[]
["Aktenzeichen:",null,null,"  ",null,null,"11-stellig"]
[]
["Zahlungsantrag vom:",null,null,"2025-10-06",null,null,"Datum (TT.MM.JJJJ)"]
[]
["Bewilligungssumme:",null,null,null,null,null,"Betrag in €"]
[]
["gem. Bewilligungsbescheid/en vom:",null,null,null,null,null,"Datum (TT.MM.JJJJ)"]
[]
["Aktenzeichen des Bewilligungsbescheides:"]
[]
[]
["Bankverbindung:"]
[]
["IBAN:",null,null,null,null,null,"22-stellig "]
[]
["BIC:",null,null,null,null,null,"11-stellig"]
[]
[]
["Bitte ergänzen bzw. korrigieren Sie die rot markierten Felder!"]

{"sheet":"Rechnungen","index":1,"n_rows":10,"n_cols":18,"rows_kept":10,"cut":false,"hidden":true,"merged":[[7,5,7,7],[0,0,1,6],[2,0,2,6]]}
["Anlage zum Zahlungsantrag - Belegliste"]
[]
["- Bearbeitungstabelle Rechnungen -"]
[]
[]
[null,null,null,null,null,{"$f":"COUNTIF(E:E,\"<>\")","v":1}]
[]
[]
[]
["Lfd. Nummer","Art des Beleges","Fördergegenstand","Rechnungsempfänger","Rechnungsaussteller","Rechnungsnummer","Auftragsdatum","Rechnungsdatum","Gezahlt / Geleistet am","Bruttobetrag","Skonto/Rabatt vom Brutto","Brutto bereinigt oder max. vom Antragsteller bezahlt","Mehrwertsteuer","Nettobetrag","Nicht förderfähige Ausgaben lt. Antragsteller ohne MwSt.","Netto bereinigt","Förderfähig laut Antragsteller","Anmerkungen des Antragstellers"]

{"sheet":"Druckfassung","index":2,"n_rows":10,"n_cols":18,"rows_kept":10,"cut":false,"hidden":true,"merged":[[0,0,0,17],[3,0,3,1],[2,6,2,7],[1,0,2,1],[3,2,4,4],[3,5,4,7],[2,13,2,15],[2,8,2,12],[2,2,2,5],[3,8,4,12],[3,13,4,16]]}
["- Druckliste Rechnungen -"]
["BNR-ZD/EU-Betriebsnr.:"]
[null,null,{"$f":"\"276 07\"&\" \"&Deckblatt!D8","v":"276 07 "},null,null,null,"Aktenzeichen:",null,"  ",null,null,null,null,null,null,null,{"$f":"Deckblatt!D29","v":"00:00:00"}]
["Antragsteller:",null,null,null,null,"Bezeichnung des Vorhabens:",null,null,{"$f":"Deckblatt!C21","v":0},null,null,null,null,"Rechnungsblatt zum Zahlungsantrag vom ",null,null,null,{"$f":"Deckblatt!D25","v":"2025-10-06"}]
[]
["Lfd. Nr.","Art des Belegs","Fördergegenstand","Rechnungs-empfänger","Rechnungs-aussteller","Rechnungs-nummer","Auftrags-datum","Rechnungs-datum","Gezahlt / Geleistet am","Bruttobetrag [EUR]","Skonto/Rabatt vom Brutto [EUR]","Brutto bereinigt oder max. vom Antragsteller bezahlt [EUR]","Mehrwert-steuer [EUR]","Nettobetrag [EUR]","Nicht förderfähige Ausgaben lt. Antragsteller ohne MwSt. [EUR]","Netto bereinigt [EUR]","davon förderfähig lt. Antragsteller [EUR]","Anmerkungen des Antragstellers"]
[]
[]
[null,null,null,null,null,null,null,null,"Gesamtsumme:",{"$f":"SUM(J6:J7)","v":0},0,0,0,0,0,0,0]
["Ort, Datum",null,null,"Unterschrift"]

{"sheet":"Wertebereiche","index":3,"n_rows":36,"n_cols":80,"rows_kept":36,"cut":false,"hidden":true,"merged":[]}
["Maßnahme","ELER-Code","Bezeichnung",null,"Grenze Förderfähigkeit Rechnungen","Fachgebiet","Beschreibung mit Kürzel",null,null,null,null,null,null,null,null,null,null,null,null,null,null,"Variante",null,null,null,null,"Fördergegenstand","Beschreibung","Maßnahme","LAG-Nummer","Beschreibung mit Kürzel",null,null,null,null,null,null,null,null,null,null,null,null,null,null,null,null,null,null,null,null,null,"Kostengruppe","Beschreibung","Fachgebiet","Maßnahmen","Beschreibung mit Kürzel",null,null,null,null,null,null,null,null,null,null,null,null,null,null,null,null,null,null,null,null,null,"LAG","Bezeichnung"]
["AFP","EL 0403-01","Agrarinvestitionsförderungsprogramm",null,500,"STEPMO","Agrarinvestitionsförderungsprogramm (AFP) - (EL 0403-01)",null,null,null,null,null,null,null,null,null,null,null,null,null,null,"C",null,null,null,null,"AFP_23_1","Basisförderung","AFP",null,{"$f":" AA2& \": \" &AB2","v":"AFP_23_1: Basisförderung"},null,null,null,null,null,null,null,null,null,null,null,null,null,null,null,null,null,null,null,null,null,"BI","Bauliche Investitionen","STEPWB","WegeB,SteilWG,RadWB",{"$f":"BB2&\" [\"&BA2&\"]\"","v":"Bauliche Investitionen [BI]"},null,null,null,null,null,null,null,null,null,null,null,null,null,null,null,null,null,null,null,null,null,1,"LAG Bitburg Prüm"]
["FISU","EL-0403-01","Förderung für Investitionen von Spezialmaschinen und Umwelt ",null,500,"STEPMO","Förderung von Spezialmaschinen und Umweltinvestitionen (FISU) - (EL-0403-01)",null,null,null,null,null,null,null,null,null,null,null,null,null,null," A: REB Variante A (Fachgebiete STEPWB)\nB: REB Variante B (Fachgebiete STEPADD)\nC: REB Variante C (Fachgebiet STEPMO)",null,null,null,null,"AFP_23_2","Premiumförderung Rindviehhaltung","AFP",null,{"$f":" AA3& \": \" &AB3","v":"AFP_23_2: Premiumförderung Rindviehhaltung"},null,null,null,null,null,null,null,null,null,null,null,null,null,null,null,null,null,null,null,null,null,"AL","Architektenleistungen","STEPWB","WegeB","Architektenleistungen [AL]",null,null,null,null,null,null,null,null,null,null,null,null,null,null,null,null,null,null,null,null,null,2,"LAG Donnersberger und Lautrer Land"]
["BEWNB","EL-0403-02","Bewässerung Neubau ",null,500,"STEPMO","Bewässerungssysteme (Neuanlagen) - (EL-0403-02)",null,null,null,null,null,null,null,null,null,null,null,null,null,null,null,null,null,null,null,"AFP_23_3","Premiumförderung Schweinehaltung","AFP",null,"AFP_23_3: Premiumförderung Schweinehaltung",null,null,null,null,null,null,null,null,null,null,null,null,null,null,null,null,null,null,null,null,null,"PL","Planungsleistungen","STEPWB","SteilWG,RadWB","Planungsleistungen [PL]",null,null,null,null,null,null,null,null,null,null,null,null,null,null,null,null,null,null,null,null,null,3,"LAG Erbeskopf"]
["BEWUB","EL-0403-02","Bewässerung Umbau ",null,500,"STEPMO","Bewässerungssysteme (Verbesserung bestehender Systeme) - (EL-0403-02)",null,null,null,null,null,null,null,null,null,null,null,null,null,null,null,null,null,null,null,"AFP_23_4","Premiumförderung sonstige Tierhaltung","AFP",null,"AFP_23_4: Premiumförderung sonstige Tierhaltung",null,null,null,null,null,null,null,null,null,null,null,null,null,null,null,null,null,null,null,null,null,"MGTE","Maschinen, Geräte, technische Einrichtungen","STEPWB","SteilWG","Maschinen, Geräte, technische Einrichtungen [MGTE]",null,null,null,null,null,null,null,null,null,null,null,null,null,null,null,null,null,null,null,null,null,4,"LAG Hunsrück"]
["GMOW Investiv","SP-0304-01","Investitionen in Vermögenswerte & Nachhaltigkeit/Energieeffizienz in Weinbauunternehmen",null,500,"STEPMO","Investitionen in Vermögenswerte in - (SP-0304-01) und Nachhaltigkeit / Energieeffizienz von (SP-0304-02) Weinbauunternehmen ",null,null,null,null,null,null,null,null,null,null,null,null,null,null,null,null,null,null,null,"AFP_23_5","Basisförderung mit EIP-Aufschlag i.H.v. 10%","AFP",null,"AFP_23_5: Basisförderung mit EIP-Aufschlag i.H.v. 10%",null,null,null,null,null,null,null,null,null,null,null,null,null,null,null,null,null,null,null,null,null,"ED","Externe Dienstleistungen","ALLE","EIP,LLAG19.1,LPRO19.2,LPRO19.3,LLAG19.4,WITRA1.1,WITRA1.2,BBV2.1,N2KU,N2K,RadWB","Externe Dienstleistungen [ED]",null,null,null,null,null,null,null,null,null,null,null,null,null,null,null,null,null,null,null,null,null,5,"LAG Lahn-Taunus"]
["BIM","SP-0305-00-0-01","Förderung von Informationsmaßnahmen über Weine aus der Union",null,500,"STEPMO","Förderung von Informationsmaßnahmen über Weine aus der Union - (SP-0305-00-0-01)",null,null,null,null,null,null,null,null,null,null,null,null,null,null,null,null,null,null,null,"AFP_23_6","Premiumförderung mit EIP-Aufschlag i.H.v. 10%","AFP",null,"AFP_23_6: Premiumförderung mit EIP-Aufschlag i.H.v. 10%",null,null,null,null,null,null,null,null,null,null,null,null,null,null,null,null,null,null,null,null,null,"KUV","Kosten für die Errichtung und den Erwerb von unbeweglichem Vermögen","STEPADD","LPRO19.2,LPRO19.3,N2KU,N2K","Kosten für die Errichtung und den Erwerb von unbeweglichem Vermögen [KUV]",null,null,null,null,null,null,null,null,null,null,null,null,null,null,null,null,null,null,null,null,null,6,"LAG Mosel"]
[null,null,null,null,null,null,null,null,null,null,null,null,null,null,null,null,null,null,null,null,null,null,null,null,null,null,"NFF","sonstige, nicht förderfähige Kosten","AFP",null,"NFF: sonstige, nicht förderfähige Kosten",null,null,null,null,null,null,null,null,null,null,null,null,null,null,null,null,null,null,null,null,null,"KBV","Kosten für den Erwerb von beweglichem Vermögen und immateriellen Investitionen","STEPADD","LPRO19.2,LPRO19.3,N2KU,N2K","Kosten für den Erwerb von beweglichem Vermögen und immateriellen Investitionen [KBV]",null,null,null,null,null,null,null,null,null,null,null,null,null,null,null,null,null,null,null,null,null,7,"LAG Moselfranken"]
[null,null,null,null,null,null,null,null,null,null,null,null,null,null,null,null,null,null,null,null,null,null,null,null,null,null,"FISU_23_1","FISU (Förderung/Investition von Spezialmaschinen - Umwelt)","FISU",null,"FISU_23_1: FISU (Förderung/Investition von Spezialmaschinen - Umwelt)",null,null,null,null,null,null,null,null,null,null,null,null,null,null,null,null,null,null,null,null,null,"PK","Direkte Personalkosten","STEPADD","EIP,LPRO19.2,LPRO19.3,LLAG19.4,WITRA1.1,WITRA1.2,BBV2.1","Direkte Personalkosten [PK]",null,null,null,null,null,null,null,null,null,null,null,null,null,null,null,null,null,null,null,null,null,8,"LAG Pfälzerwald plus"]
[null,null,null,null,null,null,null,null,null,null,null,null,null,null,null,null,null,null,null,null,null,null,null,null,null,null,"NFF","sonstige, nicht förderfähige Kosten","FISU",null,"NFF: sonstige, nicht förderfähige Kosten",null,null,null,null,null,null,null,null,null,null,null,null,null,null,null,null,null,null,null,null,null,"PK-D","Direkte Personalkosten (Pauschale)","STEPADD","EIP,LPRO19.2,LPRO19.3,LLAG19.4,WITRA1.1,WITRA1.2,BBV2.1","Direkte Personalkosten (Pauschale) [PK-D]",null,null,null,null,null,null,null,null,null,null,null,null,null,null,null,null,null,null,null,null,null,9,"LAG Raiffeisen-Region"]
[null,null,null,null,null,null,null,null,null,null,null,null,null,null,null,null,null,null,null,null,null,null,null,null,null,null,"BEW_23_1","Bewässerungssysteme / Beregnungsinfrastruktur (Vergrößerung der bewässerten Fläche (Neuanlagen))","BEWNB",null,"BEW_23_1: Bewässerungssysteme / Beregnungsinfrastruktur (Vergrößerung der bewässerten Fläche (Neuanlagen))",null,null,null,null,null,null,null,null,null,null,null,null,null,null,null,null,null,null,null,null,null,"SEK_PK","Standardeinheitskosten direkte Personalkosten","STEPADD","EIP,LPRO19.2,LPRO19.3,LLAG19.4,WITRA1.1,WITRA1.2,N2KU,N2K","Standardeinheitskosten direkte Personalkosten [SEK_PK]",null,null,null,null,null,null,null,null,null,null,null,null,null,null,null,null,null,null,null,null,null,10,"LAG Rhein-Eifel"]
[null,null,null,null,null,null,null,null,null,null,null,null,null,null,null,null,null,null,null,null,null,null,null,null,null,null,"NFF","sonstige, nicht förderfähige Kosten","BEWNB",null,{"$f":" AA12& \": \" &AB12","v":"NFF: sonstige, nicht förderfähige Kosten"},null,null,null,null,null,null,null,null,null,null,null,null,null,null,null,null,null,null,null,null,null,"SEK_FA","Standardeinheitskosten freiwillige Arbeit","STEPADD","EIP,LPRO19.2,LPRO19.3,LLAG19.4,WITRA1.1,WITRA1.2","Standardeinheitskosten freiwillige Arbeit [SEK_FA]",null,null,null,null,null,null,null,null,null,null,null,null,null,null,null,null,null,null,null,null,null,11,"LAG Rhein-Haardt"]
[null,null,null,null,null,null,null,null,null,null,null,null,null,null,null,null,null,null,null,null,null,null,null,null,null,null,"BEW_23_2","Bewässerungssysteme / Beregnungsinfrastruktur (Verbesserung bestehender Bewässerungssysteme)","BEWUB",null,"BEW_23_2: Bewässerungssysteme / Beregnungsinfrastruktur (Verbesserung bestehender Bewässerungssysteme)",null,null,null,null,null,null,null,null,null,null,null,null,null,null,null,null,null,null,null,null,null,"SEK_PK-D","Standardeinheitskosten Direkte Personalkosten (Pauschale)","STEPADD","EIP,LPRO19.2,LPRO19.3,LLAG19.4,WITRA1.1,WITRA1.2,N2KU,N2K","Standardeinheitskosten Direkte Personalkosten (Pauschale) [SEK_PK-D]",null,null,null,null,null,null,null,null,null,null,null,null,null,null,null,null,null,null,null,null,null,12,"LAG Rheinhessen"]
[null,null,null,null,null,null,null,null,null,null,null,null,null,null,null,null,null,null,null,null,null,null,null,null,null,null,"NFF","sonstige, nicht förderfähige Kosten","BEWUB",null,"NFF: sonstige, nicht förderfähige Kosten",null,null,null,null,null,null,null,null,null,null,null,null,null,null,null,null,null,null,null,null,null,"ESL","Eigenleistungen/Sachleistungen","ALLE","EIP,LPRO19.2,LPRO19.3,WITRA1.1,WITRA1.2,BBV2.1,N2KU,N2K,SteilWG","Eigenleistungen/Sachleistungen [ESL]",null,null,null,null,null,null,null,null,null,null,null,null,null,null,null,null,null,null,null,null,null,13,"LAG Rhein-Wied"]
[null,null,null,null,null,null,null,null,null,null,null,null,null,null,null,null,null,null,null,null,null,null,null,null,null,null,"GMOW Basis","Basisförderung","GMOW Investiv",null,"GMOW Basis: Basisförderung",null,null,null,null,null,null,null,null,null,null,null,null,null,null,null,null,null,null,null,null,null,"SQK","Schulungs- und Qualifizierungskosten (inklusive Reisekosten)","STEPADD","LPRO19.2,LPRO19.3","Schulungs- und Qualifizierungskosten (inklusive Reisekosten) [SQK]",null,null,null,null,null,null,null,null,null,null,null,null,null,null,null,null,null,null,null,null,null,14,"LAG Soonwald-Nahe"]
[null,null,null,null,null,null,null,null,null,null,null,null,null,null,null,null,null,null,null,null,null,null,null,null,null,null,"NFF","sonstige, nicht förderfähige Kosten","GMOW Investiv",null,"NFF: sonstige, nicht förderfähige Kosten",null,null,null,null,null,null,null,null,null,null,null,null,null,null,null,null,null,null,null,null,null,"FNK","Finanzkosten / Netzwerkkosten","STEPADD","LPRO19.2,LPRO19.3","Finanzkosten / Netzwerkkosten [FNK]",null,null,null,null,null,null,null,null,null,null,null,null,null,null,null,null,null,null,null,null,null,15,"LAG Südpfalz"]
[null,null,null,null,null,null,null,null,null,null,null,null,null,null,null,null,null,null,null,null,null,null,null,null,null,null,"GMOW Energie","Energieeinsparung","GMOW Investiv",null,"GMOW Energie: Energieeinsparung",null,null,null,null,null,null,null,null,null,null,null,null,null,null,null,null,null,null,null,null,null,"ÖVH","Öffentlichkeitsarbeit / Veröffentlichungen / Homepages","STEPADD","LPRO19.3","Öffentlichkeitsarbeit / Veröffentlichungen / Homepages [ÖVH]",null,null,null,null,null,null,null,null,null,null,null,null,null,null,null,null,null,null,null,null,null,16,"LAG Vulkaneifel"]
[null,null,null,null,null,null,null,null,null,null,null,null,null,null,null,null,null,null,null,null,null,null,null,null,null,null,"NFF","sonstige, nicht förderfähige Kosten","Energieeffizienz",null,"NFF: sonstige, nicht förderfähige Kosten",null,null,null,null,null,null,null,null,null,null,null,null,null,null,null,null,null,null,null,null,null,"LBETR","Laufender Betrieb der LAG ohne Regionalmanagement und indirekte Kosten","STEPADD","LLAG19.4","Laufender Betrieb der LAG ohne Regionalmanagement und indirekte Kosten [LBETR]",null,null,null,null,null,null,null,null,null,null,null,null,null,null,null,null,null,null,null,null,null,17,"LAG Welterbe Oberes Mittelrheintal"]
[null,null,null,null,null,null,null,null,null,null,null,null,null,null,null,null,null,null,null,null,null,null,null,null,null,null,"FID_23_1","Förderung von Investitionen zur Diversifizierung","BIM",null,"FID_23_1: Förderung von Investitionen zur Diversifizierung",null,null,null,null,null,null,null,null,null,null,null,null,null,null,null,null,null,null,null,null,null,"SENSÖ","Sensibilisierungsmaßnahmen/Öffentlichkeitsarbeit","STEPADD","LLAG19.4","Sensibilisierungsmaßnahmen/Öffentlichkeitsarbeit [SENSÖ]",null,null,null,null,null,null,null,null,null,null,null,null,null,null,null,null,null,null,null,null,null,18,"LAG Westerwald"]
[null,null,null,null,null,null,null,null,null,null,null,null,null,null,null,null,null,null,null,null,null,null,null,null,null,null,"NFF","sonstige, nicht förderfähige Kosten","BIM",null,"NFF: sonstige, nicht förderfähige Kosten",null,null,null,null,null,null,null,null,null,null,null,null,null,null,null,null,null,null,null,null,null,"ÜUBL","Ausgaben im Zusammenhang mit der Überwachung der Umsetzung und Bewertung der LILE","STEPADD","LLAG19.4","Ausgaben im Zusammenhang mit der Überwachung der Umsetzung und Bewertung der LILE [ÜUBL]",null,null,null,null,null,null,null,null,null,null,null,null,null,null,null,null,null,null,null,null,null,19,"LAG Westerwald-Sieg"]
[null,null,null,null,null,null,null,null,null,null,null,null,null,null,null,null,null,null,null,null,null,null,null,null,null,null,null,null,null,null,null,null,null,null,null,null,null,null,null,null,null,null,null,null,null,null,null,null,null,null,null,null,"FNSRÖ","Finanzkosten / Netzwerkkosten / Schulungs- und Qualifizierungskosten / Reisekosten / Kosten für Öffentlichkeitsarbeit","STEPADD","EIP","Finanzkosten / Netzwerkkosten / Schulungs- und Qualifizierungskosten / Reisekosten / Kosten für Öffentlichkeitsarbeit [FNSRÖ]",null,null,null,null,null,null,null,null,null,null,null,null,null,null,null,null,null,null,null,null,null,20,"LAG Westrich-Glantal"]
[null,null,null,null,null,null,null,null,null,null,null,null,null,null,null,null,null,null,null,null,null,null,null,null,null,null,null,null,null,null,null,null,null,null,null,null,null,null,null,null,null,null,null,null,null,null,null,null,null,null,null,null,"IKMU","Investitionen KMU","STEPADD","EIP,WITRA1.2,BBV2.1","Investitionen KMU [IKMU]"]
[null,null,null,null,null,null,null,null,null,null,null,null,null,null,null,null,null,null,null,null,null,null,null,null,null,null,null,null,null,null,null,null,null,null,null,null,null,null,null,null,null,null,null,null,null,null,null,null,null,null,null,null,"SKATU","Sachkosten (Anlaysen, Test, Untersuchungen, Nutzungskosten Maschinen/Geräte)","STEPADD","EIP,WITRA1.1,WITRA1.2,BBV2.1","Sachkosten (Anlaysen, Test, Untersuchungen, Nutzungskosten Maschinen/Geräte) [SKATU]"]
[null,null,null,null,null,null,null,null,null,null,null,null,null,null,null,null,null,null,null,null,null,null,null,null,null,null,null,null,null,null,null,null,null,null,null,null,null,null,null,null,null,null,null,null,null,null,null,null,null,null,null,null,"GA","Grundstücksankauf","STEPADD","N2K","Grundstücksankauf [GA]"]
[null,null,null,null,null,null,null,null,null,null,null,null,null,null,null,null,null,null,null,null,null,null,null,null,null,null,null,null,null,null,null,null,null,null,null,null,null,null,null,null,null,null,null,null,null,null,null,null,null,null,null,null,"GB","Grundstücksankauf (Brachflächen und ehemals industriell genutze Flächen)","STEPADD","N2K","Grundstücksankauf (Brachflächen und ehemals industriell genutze Flächen) [GB]"]
[null,null,null,null,null,null,null,null,null,null,null,null,null,null,null,null,null,null,null,null,null,null,null,null,null,null,null,null,null,null,null,null,null,null,null,null,null,null,null,null,null,null,null,null,null,null,null,null,null,null,null,null,"EP","Externes Projektmanagement","STEPADD","N2K","Externes Projektmanagement [EP]"]
[null,null,null,null,null,null,null,null,null,null,null,null,null,null,null,null,null,null,null,null,null,null,null,null,null,null,null,null,null,null,null,null,null,null,null,null,null,null,null,null,null,null,null,null,null,null,null,null,null,null,null,null,"AF","Anpachtung von Flächen","STEPADD","N2K","Anpachtung von Flächen [AF]"]
[null,null,null,null,null,null,null,null,null,null,null,null,null,null,null,null,null,null,null,null,null,null,null,null,null,null,null,null,null,null,null,null,null,null,null,null,null,null,null,null,null,null,null,null,null,null,null,null,null,null,null,null,"AN","Ablösung bestehender Nutzungsrechte und Abschluss von Gestattungsverträgen","STEPADD","N2K","Ablösung bestehender Nutzungsrechte und Abschluss von Gestattungsverträgen [AN]"]
[null,null,null,null,null,null,null,null,null,null,null,null,null,null,null,null,null,null,null,null,null,null,null,null,null,null,null,null,null,null,null,null,null,null,null,null,null,null,null,null,null,null,null,null,null,null,null,null,null,null,null,null,"UMS","Maßnahmenumsetzung","STEPADD","N2K","Maßnahmenumsetzung [UMS]"]
[null,null,null,null,null,null,null,null,null,null,null,null,null,null,null,null,null,null,null,null,null,null,null,null,null,null,null,null,null,null,null,null,null,null,null,null,null,null,null,null,null,null,null,null,null,null,null,null,null,null,null,null,"PAK","Pachtkosten","STEPADD","N2KU","Pachtkosten [PAK]"]
[null,null,null,null,null,null,null,null,null,null,null,null,null,null,null,null,null,null,null,null,null,null,null,null,null,null,null,null,null,null,null,null,null,null,null,null,null,null,null,null,null,null,null,null,null,null,null,null,null,null,null,null,"MIET","Miet- und Mietnebenkosten","STEPADD","N2KU","Miet- und Mietnebenkosten [MIET]"]
[null,null,null,null,null,null,null,null,null,null,null,null,null,null,null,null,null,null,null,null,null,null,null,null,null,null,null,null,null,null,null,null,null,null,null,null,null,null,null,null,null,null,null,null,null,null,null,null,null,null,null,null,"BEGL","Begleitende Maßnahmen","STEPADD","BB","Begleitende Maßnahmen [BEGL]"]
[null,null,null,null,null,null,null,null,null,null,null,null,null,null,null,null,null,null,null,null,null,null,null,null,null,null,null,null,null,null,null,null,null,null,null,null,null,null,null,null,null,null,null,null,null,null,null,null,null,null,null,null,"LEER","Leerrohre","STEPADD","BB","Leerrohre [LEER]"]
[null,null,null,null,null,null,null,null,null,null,null,null,null,null,null,null,null,null,null,null,null,null,null,null,null,null,null,null,null,null,null,null,null,null,null,null,null,null,null,null,null,null,null,null,null,null,null,null,null,null,null,null,"WIRT","Wirtschaftlichkeitslücke","STEPADD","BB","Wirtschaftlichkeitslücke [WIRT]"]
[null,null,null,null,null,null,null,null,null,null,null,null,null,null,null,null,null,null,null,null,null,null,null,null,null,null,null,null,null,null,null,null,null,null,null,null,null,null,null,null,null,null,null,null,null,null,null,null,null,null,null,null,"SO","Sonstige","ALLE","ALLE",{"$f":"BB35&\" [\"&BA35&\"]\"","v":"Sonstige [SO]"}]
[null,null,null,null,null,null,null,null,null,null,null,null,null,null,null,null,null,null,null,null,null,null,null,null,null,null,null,null,null,null,null,null,null,null,null,null,null,null,null,null,null,null,null,null,null,null,null,null,null,null,null,null,"unbekannt","unbekannt","ALLE","ALLE",{"$f":"BB36","v":"unbekannt"}]